fUST/lending_fUST_20251118
["ID","MTS","AMOUNT","RATE_DAILY","PERIOD"]
[394247094,1763406644765,-395.5698071,0.00045761,30]
[394247095,1763406644777,-383.3947659,0.00045761,30]
[394247096,1763406644786,-1802.81,0.000458,14]
[394247097,1763406644795,-151.79,0.00046,20]
[394247098,1763406644805,-515.34,0.00046027,120]
[394247099,1763406644814,-1139.63,0.00046027,120]
[394247100,1763406644824,-500.0,0.00046027,60]
[394247101,1763406644833,-989.0,0.00046027,120]
[394247102,1763406644842,-3166.12,0.00046027,3]
[394247103,1763406644852,-605.93,0.00046027,120]
[394247104,1763406644860,-758.55,0.00046027,120]
[394247105,1763406644870,-500.0,0.00046027,7]
[394247106,1763406644879,-500.0,0.00046027,120]
[394247107,1763406644888,-6167.8,0.00046027,120]
[394247108,1763406644897,-521.29,0.00046027,120]
[394247109,1763406644907,-500.0,0.00046079,2]
[394247110,1763406644916,-619.10742552,0.000461,120]
[394247111,1763406644926,-276.59671408,0.000461,120]
[394247112,1763406644935,-238.86744616,0.000461,120]
[394247113,1763406644945,-1483.75975564,0.00046291,4]
[394247114,1763406644955,-515.34,0.00046301,120]
[394247115,1763406644964,-1139.63,0.00046301,120]
[394247116,1763406644974,-349.18421972,0.00046301,60]
[394247117,1763406644983,-989.0,0.00046301,120]
[394247118,1763406644993,-1072.01179475,0.00046301,3]
[394247119,1763406645045,-875.59919563,0.00045479,2]
[394247120,1763406645056,-119.96080437,0.00045479,2]
[394247121,1763406645066,-995.56,0.00045753,2]
[394247122,1763406645075,-995.56,0.00046027,2]
[394247123,1763406645085,-2094.10820525,0.00046301,3]
[394247124,1763406645094,-605.93,0.00046301,120]
[394247125,1763406645103,-758.55,0.00046301,120]
[394247126,1763406645113,-500.0,0.00046301,7]
[394247127,1763406645122,-500.0,0.00046301,120]
[394247128,1763406645131,-914.94390591,0.00046301,120]
[394247129,1763406645143,-5252.85609409,0.00046301,120]
[394247130,1763406645152,-361.89173955,0.00046301,120]
[394247131,1763406645165,-159.39826045,0.00046301,120]
[394247132,1763406645174,-995.56,0.00046301,2]
[394247133,1763406645184,-118.20260685,0.00046349,2]
[394247134,1763406645195,-1420.19739315,0.00046349,2]
[394247135,1763406645204,-720.0,0.00046415,90]
[394247136,1763406645213,-776.0,0.000465,30]
[394247137,1763406645222,-2193.88,0.000465,14]
[394247138,1763406645231,-264.45400327,0.00046565,4]
[394247139,1763406645240,-515.34,0.00046575,120]
[394247140,1763406645249,-1139.63,0.00046575,120]
[394247141,1763406645257,-989.0,0.00046575,120]
[394247142,1763406645266,-3166.12,0.00046575,3]
[394247143,1763406645277,-605.93,0.00046575,120]
[394247145,1763406645286,-758.55,0.00046575,120]
[394247146,1763406645294,-214.47366008,0.00046575,7]
[394247147,1763406645303,-372.19370881,0.00046575,120]
[394247148,1763406645312,-6167.8,0.00046575,120]
[394247149,1763406645321,-521.29,0.00046575,120]
[394247151,1763406645331,-995.56,0.00046575,2]
[394247152,1763406645340,-289.59579511,0.00046575,2]
[394247153,1763406645349,-515.34,0.00046849,120]
[394247154,1763406645358,-1139.63,0.00046849,120]
[394247155,1763406645367,-199.0,0.00046849,30]
[394247156,1763406645376,-989.0,0.00046849,120]
[394247157,1763406645385,-3166.12,0.00046849,3]
[394247158,1763406645394,-605.93,0.00046849,120]
[394247159,1763406645403,-758.55,0.00046849,120]
[394247160,1763406645412,-6167.8,0.00046849,120]
[394247161,1763406645421,-521.29,0.00046849,120]
[394247162,1763406645430,-995.56,0.00046849,2]
[394247163,1763406645440,-515.34,0.00047123,120]
[394247164,1763406645450,-1139.63,0.00047123,120]
[394247165,1763406645459,-989.0,0.00047123,120]
[394247166,1763406645468,-3166.12,0.00047123,3]
[394247167,1763406645477,-605.93,0.00047123,120]
[394247168,1763406645486,-758.55,0.00047123,120]
[394247169,1763406645497,-6167.8,0.00047123,120]
[394247170,1763406645506,-521.29,0.00047123,120]
[394247171,1763406645515,-995.56,0.00047123,2]
[394247172,1763406645526,-500.0,0.00047175,2]
[394247173,1763406645535,-150.0,0.00047396,7]
[394247175,1763406645546,-515.53,0.00047397,120]
[394247177,1763406645556,-1139.84,0.00047397,120]
[394247179,1763406645565,-989.18,0.00047397,120]
[394247181,1763406645574,-3166.32759509,0.00047397,3]
[394247182,1763406645583,-606.15011993,0.00047397,120]
[394247183,1763406645597,-758.69951869,0.00047397,120]
[394247184,1763406645605,-6167.90047484,0.00047397,120]
[394247185,1763406645614,-521.51685185,0.00047397,120]
[394247186,1763406645623,-995.79585135,0.00047397,2]
[394247187,1763406645632,-264.45400327,0.0004745,4]
[394247188,1763406645641,-5051.9053434,0.0004746,2]
[394247189,1763406645650,-2762.5904639,0.0004746,2]
[394247192,1763406645660,-18510.760097,0.0004746,2]
[394247193,1763406645672,-1865.39689086,0.00047522,2]
[394247195,1763406645682,-278.30495642,0.0004776,60]
[394247198,1763406645691,-150.0,0.00047861,2]
[394247200,1763406645701,-150.0,0.00047999,5]
[394247201,1763406645710,-69713.60411022,0.00048,5]
[394247204,1763406645721,-295.74,0.00048,5]
[394247207,1763406645746,413.0,0.00035789,2]
[394247429,1763406689240,203.18354213,0.0002201,2]
[394247430,1763406689889,203.18354213,0.00033299,2]
[394247431,1763406696536,217.3983255,0.00014403,2]
[394247432,1763406696570,155.75796465,0.0002201,2]
[394247433,1763406697182,217.3983255,0.00023402,2]
[394247434,1763406697886,217.3983255,0.00032401,2]
[394247442,1763407530111,-217.72426003,0.00015775,2]
[394247443,1763407530131,-250.0,0.000249,2]
[394247444,1763407530150,-193.85341116,0.00029817,2]
[394247445,1763407530170,-999.0,0.00029917,2]
[394247446,1763407530193,-180.01011517,0.00031329,2]
[394247455,1763407602153,-284.08,0.00013699,2]
[394247456,1763407602175,-202.60123857,0.00032877,120]
[394247462,1763407633098,-500.0,0.0003318,7]
[394247463,1763407633118,-10753.3013178,0.00033874,2]
[394247464,1763407633137,-232.079796,0.00034583,2]
[394247465,1763407633157,-500.0,0.0003583,30]
[394247466,1763407633177,-293.85068442,0.00035837,30]
[394247467,1763407633196,-507.20239248,0.00036208,30]
[394247468,1763407633217,-168.0,0.00036242,2]
[394247469,1763407633238,-168.0,0.0003627,2]
[394247470,1763407633258,-500.0,0.00036407,30]
[394247471,1763407633283,-500.0,0.00036441,15]
[394247472,1763407633307,-500.0,0.00036441,7]
[394247473,1763407633329,-501.65424411,0.00036441,15]
[394247474,1763407633351,-187.85001911,0.00036441,15]
[394247475,1763407633372,-500.0,0.00036441,15]
[394247476,1763407633393,-500.0,0.00036441,15]
[394247477,1763407633417,-500.0,0.00036441,7]
[394247478,1763407633441,-500.0,0.00036441,7]
[394247479,1763407633462,-450.34809389,0.00036441,15]
[394247480,1763407633485,-500.0,0.00036441,7]
[394247481,1763407633508,-500.0,0.00036441,7]
[394247482,1763407633531,-504.64211677,0.00036441,7]
[394247483,1763407633552,-256.8303489,0.00036441,15]
[394247484,1763407633571,-45795.54559571,0.00036442,2]
[394247485,1763407633601,-6165.5003786,0.00036444,2]
[394247486,1763407633628,-168.0,0.00036538,2]
[394247487,1763407633654,-365.853,0.00036856,2]
[394247488,1763407633679,-302.0,0.00037131,2]
[394247489,1763407633708,-168.0,0.00037782,2]
[394247490,1763407633734,-168.0,0.00038654,2]
[394247491,1763407633759,-569.78964401,0.0003909,30]
[394247492,1763407633785,-518.63515472,0.00039474,30]
[394247493,1763407633810,-155.351404,0.00040406,20]
[394247494,1763407633839,-185.58,0.00040611,2]
[394247495,1763407633864,-160.894,0.0004079,59]
[394247496,1763407633888,-167.37244346,0.00041,120]
[394247497,1763407633917,-189.448428,0.00041,120]
[394247498,1763407633943,-164.21721063,0.00041,120]
[394247499,1763407633970,-160.48748027,0.00041,120]
[394247500,1763407633995,-195.37324811,0.00041,120]
[394247501,1763407634020,-488.55890055,0.00041,120]
[394247502,1763407634042,-196.23576626,0.00041,30]
[394247503,1763407634064,-500.0,0.00041095,7]
[394247504,1763407634086,-604.32,0.00041095,120]
[394247505,1763407634110,-500.0,0.00041095,120]
[394247506,1763407634134,-500.0,0.00041095,120]
[394247507,1763407634159,-762.46,0.00041095,120]
[394247508,1763407634183,-500.0,0.00041095,120]
[394247509,1763407634208,-516.25,0.00041095,120]
[394247510,1763407634232,-500.0,0.00041095,120]
[394247511,1763407634255,-500.0,0.00041095,120]
[394247512,1763407634277,-931.76198912,0.00041095,120]
[394247513,1763407634299,-500.0,0.00041095,120]
[394247514,1763407634323,-500.0,0.00041095,120]
[394247515,1763407634348,-500.0,0.00041095,120]
[394247516,1763407634371,-2383.28,0.00041095,3]
[394247517,1763407634394,-389.15815094,0.00041095,120]
[394247518,1763407634418,-500.0,0.00041095,120]
[394247519,1763407634440,-500.0,0.00041095,7]
[394247520,1763407634461,-160.0,0.00041167,2]
[394247521,1763407634483,-366.22,0.00041342,120]
[394247522,1763407634506,-227.7,0.00041359,10]
[394247523,1763407634528,-500.0,0.00041368,120]
[394247524,1763407634552,-692.61,0.00041368,60]
[394247525,1763407634574,-500.0,0.00041368,120]
[394247526,1763407634596,-500.0,0.00041368,7]
[394247527,1763407634619,-500.0,0.00041368,120]
[394247528,1763407634641,-1000.0,0.00041368,2]
[394247529,1763407634666,-2055.93,0.00041368,120]
[394247530,1763407634688,-500.0,0.00041368,120]
[394247531,1763407634710,-500.0,0.00041368,120]
[394247532,1763407634734,-494.81176982,0.00041368,2]
[394247533,1763407634758,-500.0,0.00041368,120]
[394247534,1763407634901,-500.0,0.00041369,7]
[394247535,1763407634932,-604.32,0.00041369,120]
[394247536,1763407634954,-500.0,0.00041369,120]
[394247537,1763407634977,-762.46,0.00041369,120]
[394247538,1763407635001,-500.0,0.00041369,120]
[394247539,1763407635024,-516.25,0.00041369,120]
[394247540,1763407635050,-500.0,0.00041369,120]
[394247541,1763407635072,-500.0,0.00041369,120]
[394247542,1763407635096,-500.0,0.00041369,120]
[394247543,1763407635120,-500.0,0.00041369,120]
[394247544,1763407635142,-500.0,0.00041369,120]
[394247545,1763407635163,-2383.28,0.00041369,3]
[394247546,1763407635185,-500.0,0.00041369,120]
[394247547,1763407635205,-443.90951597,0.00041369,7]
[394247548,1763407635226,-692.61,0.00041642,60]
[394247549,1763407635248,-500.0,0.00041642,120]
[394247550,1763407635271,-500.0,0.00041642,7]
[394247551,1763407635295,-500.0,0.00041642,120]
[394247552,1763407635316,-2055.93,0.00041642,120]
[394247553,1763407635336,-500.0,0.00041642,120]
[394247554,1763407635356,-500.0,0.00041642,120]
[394247555,1763407635376,-500.0,0.00041643,7]
[394247556,1763407635397,-604.32,0.00041643,120]
[394247557,1763407635417,-500.0,0.00041643,120]
[394247558,1763407635437,-762.46,0.00041643,120]
[394247559,1763407635458,-500.0,0.00041643,120]
[394247560,1763407635479,-516.25,0.00041643,120]
[394247561,1763407635500,-500.0,0.00041643,120]
[394247562,1763407635523,-500.0,0.00041643,120]
[394247563,1763407635545,-500.0,0.00041643,120]
[394247564,1763407635564,-500.0,0.00041643,120]
[394247565,1763407635584,-2383.28,0.00041643,3]
[394247566,1763407635604,-500.0,0.00041643,120]
[394247567,1763407635625,-500.0,0.00041656,7]
[394247568,1763407635644,-500.0,0.00041656,7]
[394247569,1763407635665,-500.0,0.00041656,7]
[394247570,1763407635685,-500.0,0.00041656,7]
[394247571,1763407635706,-598.97192968,0.00041656,7]
[394247572,1763407635729,-52574.7257136,0.00041657,3]
[394247573,1763407635750,-1399.96989283,0.00041657,3]
[394247574,1763407635771,-150.0,0.00041673,10]
[394247575,1763407635793,-480.38732186,0.00041673,10]
[394247576,1763407635814,-397.7019085,0.00041715,2]
[394247577,1763407635834,-692.61,0.00041916,60]
[394247578,1763407635854,-500.0,0.00041916,120]
[394247579,1763407635874,-500.0,0.00041916,7]
[394247580,1763407635895,-500.0,0.00041916,120]
[394247581,1763407635921,-2055.93,0.00041916,120]
[394247582,1763407635942,-500.0,0.00041916,120]
[394247583,1763407635964,-500.0,0.00041916,120]
[394247584,1763407635986,-500.0,0.00041917,7]
[394247585,1763407636009,-604.32,0.00041917,120]
[394247586,1763407636030,-500.0,0.00041917,120]
[394247587,1763407636050,-762.46,0.00041917,120]
[394247588,1763407636071,-500.0,0.00041917,120]
[394247589,1763407636090,-516.25,0.00041917,120]
[394247590,1763407636110,-500.0,0.00041917,120]
[394247591,1763407636131,-500.0,0.00041917,120]
[394247592,1763407636150,-500.0,0.00041917,120]
[394247593,1763407636171,-2383.28,0.00041917,3]
[394247594,1763407636192,-500.0,0.00041917,120]
[394247595,1763407636211,-500.0,0.00041956,30]
[394247596,1763407636230,-152.553203,0.00042,120]
[394247597,1763407636251,-692.61,0.0004219,60]
[394247598,1763407636271,-519.04744163,0.0004219,120]
[394247599,1763407636291,-500.0,0.0004219,120]
[394247600,1763407636311,-2055.93,0.0004219,120]
[394247601,1763407636330,-500.0,0.0004219,120]
[394247602,1763407636350,-500.0,0.0004219,120]
[394247603,1763407636370,-500.0,0.00042191,7]
[394247604,1763407636390,-604.32,0.00042191,120]
[394247605,1763407636409,-500.0,0.00042191,120]
[394247606,1763407636429,-762.46,0.00042191,120]
[394247607,1763407636449,-500.0,0.00042191,120]
[394247608,1763407636470,-516.25,0.00042191,120]
[394247609,1763407636490,-500.0,0.00042191,120]
[394247610,1763407636510,-2383.28,0.00042191,3]
[394247611,1763407636531,-500.0,0.00042191,120]
[394247612,1763407636552,-167.37244346,0.000422,120]
[394247613,1763407636572,-189.448428,0.000422,120]
[394247614,1763407636592,-195.37324811,0.000422,120]
[394247615,1763407636613,-488.55890055,0.000422,120]
[394247616,1763407636633,-157.92,0.000422,14]
[394247617,1763407636652,-692.61,0.00042464,60]
[394247618,1763407636673,-500.0,0.00042464,120]
[394247619,1763407636693,-2055.93,0.00042464,120]
[394247620,1763407636712,-500.0,0.00042464,120]
[394247621,1763407636732,-500.0,0.00042465,7]
[394247622,1763407636752,-604.32,0.00042465,120]
[394247623,1763407636773,-500.0,0.00042465,120]
[394247624,1763407636795,-762.46,0.00042465,120]
[394247625,1763407636819,-500.0,0.00042465,120]
[394247626,1763407636840,-516.25,0.00042465,120]
[394247627,1763407636859,-500.0,0.00042465,120]
[394247628,1763407636879,-2383.28,0.00042465,3]
[394247629,1763407636899,-500.0,0.00042465,120]
[394247630,1763407636924,-1132.03175633,0.00042477,12]
[394247631,1763407636943,-300.0,0.00042495,10]
[394247632,1763407636965,-155.351404,0.00042579,31]
[394247633,1763407636991,-155.351404,0.00042634,2]
[394247634,1763407637012,-692.61,0.00042738,60]
[394247635,1763407637036,-500.0,0.00042738,120]
[394247636,1763407637058,-2055.93,0.00042738,120]
[394247637,1763407637077,-500.0,0.00042738,120]
[394247638,1763407637097,-500.0,0.00042739,7]
[394247639,1763407637118,-604.32,0.00042739,120]
[394247640,1763407637137,-500.0,0.00042739,120]
[394247641,1763407637158,-762.46,0.00042739,120]
[394247642,1763407637179,-500.0,0.00042739,120]
[394247643,1763407637200,-516.25,0.00042739,120]
[394247644,1763407637220,-500.0,0.00042739,120]
[394247645,1763407637240,-2383.28,0.00042739,3]
[394247646,1763407637260,-500.0,0.00042739,120]
[394247647,1763407637283,-52574.7257136,0.00043003,3]
[394247648,1763407637303,-1399.96989283,0.00043003,3]
[394247649,1763407637407,-692.61,0.00043012,60]
[394247650,1763407637437,-500.0,0.00043012,120]
[394247651,1763407637459,-2055.93,0.00043012,120]
[394247652,1763407637482,-500.0,0.00043012,120]
[394247653,1763407637502,-500.0,0.00043013,7]
[394247654,1763407637522,-604.32,0.00043013,120]
[394247655,1763407637545,-500.0,0.00043013,120]
[394247656,1763407637565,-762.46,0.00043013,120]
[394247657,1763407637588,-500.0,0.00043013,120]
[394247658,1763407637609,-516.25,0.00043013,120]
[394247659,1763407637629,-500.0,0.00043013,120]
[394247660,1763407637650,-2383.28,0.00043013,3]
[394247661,1763407637671,-500.0,0.00043013,120]
[394247662,1763407637692,-692.61,0.00043286,60]
[394247663,1763407637712,-500.0,0.00043286,120]
[394247664,1763407637732,-2055.93,0.00043286,120]
[394247665,1763407637753,-500.0,0.00043286,120]
[394247666,1763407637774,-500.0,0.00043287,7]
[394247667,1763407637796,-604.32,0.00043287,120]
[394247668,1763407637816,-500.0,0.00043287,120]
[394247669,1763407637837,-762.46,0.00043287,120]
[394247670,1763407637856,-500.0,0.00043287,120]
[394247671,1763407637877,-516.25,0.00043287,120]
[394247672,1763407637898,-500.0,0.00043287,120]
[394247673,1763407637923,-2383.28,0.00043287,3]
[394247674,1763407637944,-500.0,0.00043287,120]
[394247675,1763407637965,-465.6,0.000433,30]
[394247676,1763407637986,-155.351404,0.00043439,31]
[394247677,1763407638015,-167.37244346,0.000435,120]
[394247678,1763407638050,-189.448428,0.000435,120]
[394247679,1763407638076,-488.55890055,0.000435,120]
[394247680,1763407638101,-500.0,0.0004356,2]
[394247681,1763407638122,-692.61,0.0004356,60]
[394247682,1763407638143,-500.0,0.0004356,120]
[394247683,1763407638166,-2055.93,0.0004356,120]
[394247684,1763407638188,-500.0,0.0004356,120]
[394247685,1763407638209,-500.0,0.00043561,7]
[394247686,1763407638229,-604.32,0.00043561,120]
[394247687,1763407638249,-500.0,0.00043561,120]
[394247688,1763407638270,-762.46,0.00043561,120]
[394247689,1763407638291,-500.0,0.00043561,120]
[394247690,1763407638313,-516.25,0.00043561,120]
[394247691,1763407638332,-191.61,0.00043561,120]
[394247692,1763407638353,-2383.28,0.00043561,3]
[394247693,1763407638377,-500.0,0.00043561,120]
[394247694,1763407638398,-1000.0,0.000438,90]
[394247695,1763407638421,-692.61,0.00043834,60]
[394247696,1763407638443,-500.0,0.00043834,120]
[394247697,1763407638464,-2055.93,0.00043834,120]
[394247698,1763407638486,-500.0,0.00043834,120]
[394247699,1763407638506,-500.0,0.00043835,7]
[394247700,1763407638528,-604.32,0.00043835,120]
[394247701,1763407638549,-500.0,0.00043835,120]
[394247702,1763407638570,-762.46,0.00043835,120]
[394247703,1763407638591,-500.0,0.00043835,120]
[394247704,1763407638611,-516.25,0.00043835,120]
[394247705,1763407638631,-2383.28,0.00043835,3]
[394247706,1763407638651,-500.0,0.00043891,30]
[394247707,1763407638673,-2348.19,0.000439,14]
[394247708,1763407638694,-692.61,0.00044108,60]
[394247709,1763407638715,-253.6,0.00044108,120]
[394247710,1763407638737,-2055.93,0.00044108,120]
[394247711,1763407638757,-500.0,0.00044108,120]
[394247712,1763407638779,-500.0,0.00044109,7]
[394247713,1763407638800,-604.32,0.00044109,120]
[394247714,1763407638821,-500.0,0.00044109,120]
[394247715,1763407638841,-199.0,0.00044109,30]
[394247716,1763407638862,-762.46,0.00044109,120]
[394247717,1763407638885,-500.0,0.00044109,120]
[394247718,1763407638908,-516.25,0.00044109,120]
[394247719,1763407638931,-2383.28,0.00044109,3]
[394247720,1763407638955,-371.16,0.00044303,2]
[394247721,1763407638976,-692.61,0.00044382,60]
[394247722,1763407639000,-2055.93,0.00044382,120]
[394247723,1763407639022,-500.0,0.00044382,120]
[394247724,1763407639048,-500.0,0.00044383,7]
[394247725,1763407639068,-604.32,0.00044383,120]
[394247726,1763407639088,-500.0,0.00044383,120]
[394247727,1763407639110,-762.46,0.00044383,120]
[394247728,1763407639130,-500.0,0.00044383,120]
[394247729,1763407639152,-516.25,0.00044383,120]
[394247730,1763407639173,-2383.28,0.00044383,3]
[394247731,1763407639193,-203.38672568,0.00044588,2]
[394247732,1763407639213,-155.91372262,0.00044588,2]
[394247733,1763407639233,-52574.7257136,0.00044646,3]
[394247734,1763407639253,-1399.96989283,0.00044646,3]
[394247735,1763407639273,-500.0,0.00044656,2]
[394247736,1763407639295,-692.61,0.00044656,60]
[394247737,1763407639316,-2055.93,0.00044656,120]
[394247738,1763407639335,-500.0,0.00044656,120]
[394247739,1763407639355,-500.0,0.00044657,7]
[394247740,1763407639376,-604.32,0.00044657,120]
[394247741,1763407639395,-500.0,0.00044657,120]
[394247742,1763407639414,-762.46,0.00044657,120]
[394247743,1763407639434,-500.0,0.00044657,120]
[394247744,1763407639454,-516.25,0.00044657,120]
[394247745,1763407639474,-2383.28,0.00044657,3]
[394247746,1763407639494,-167.37244346,0.000448,120]
[394247747,1763407639515,-189.448428,0.000448,120]
[394247748,1763407639536,-488.55890055,0.000448,120]
[394247749,1763407639555,-692.61,0.0004493,60]
[394247750,1763407639576,-2055.93,0.0004493,120]
[394247751,1763407639595,-500.0,0.0004493,120]
[394247752,1763407639626,-500.0,0.00044931,7]
[394247753,1763407639649,-604.32,0.00044931,120]
[394247754,1763407639669,-457.43,0.00044931,120]
[394247755,1763407639690,-762.46,0.00044931,120]
[394247756,1763407639710,-500.0,0.00044931,120]
[394247757,1763407639730,-516.25,0.00044931,120]
[394247758,1763407639751,-2383.28,0.00044931,3]
[394247759,1763407639771,-692.61,0.00045204,60]
[394247760,1763407639909,-2055.93,0.00045204,120]
[394247761,1763407639932,-500.0,0.00045204,120]
[394247762,1763407639954,-512.94,0.00045205,7]
[394247763,1763407639975,-604.32,0.00045205,120]
[394247764,1763407639998,-762.46,0.00045205,120]
[394247765,1763407640018,-500.0,0.00045205,120]
[394247766,1763407640040,-516.25,0.00045205,120]
[394247767,1763407640059,-2383.28,0.00045205,3]
[394247768,1763407640078,-692.61,0.00045478,60]
[394247769,1763407640099,-2055.93,0.00045478,120]
[394247770,1763407640119,-500.0,0.00045478,120]
[394247771,1763407640139,-604.32,0.00045479,120]
[394247772,1763407640159,-199.0,0.00045479,30]
[394247773,1763407640179,-762.46,0.00045479,120]
[394247774,1763407640199,-500.0,0.00045479,120]
[394247775,1763407640220,-516.25,0.00045479,120]
[394247776,1763407640240,-2383.28,0.00045479,3]
[394247777,1763407640261,-155.351404,0.00045719,10]
[394247778,1763407640286,-500.0,0.00045752,2]
[394247779,1763407640306,-692.61,0.00045752,60]
[394247780,1763407640326,-2055.93,0.00045752,120]
[394247781,1763407640345,-500.0,0.00045752,120]
[394247782,1763407640365,-604.32,0.00045753,120]
[394247783,1763407640386,-762.46,0.00045753,120]
[394247784,1763407640406,-312.89,0.00045753,120]
[394247785,1763407640427,-516.25,0.00045753,120]
[394247786,1763407640447,-2383.28,0.00045753,3]
[394247787,1763407640473,-778.964573,0.00045757,30]
[394247788,1763407640493,-791.1396142,0.00045757,30]
[394247789,1763407640513,-157.92,0.000458,14]
[394247790,1763407640536,-465.6,0.00046,30]
[394247791,1763407640558,-155.351404,0.00046,20]
[394247792,1763407640577,-692.61,0.00046026,60]
[394247793,1763407640597,-2055.93,0.00046026,120]
[394247794,1763407640618,-500.0,0.00046026,120]
[394247795,1763407640638,-604.32,0.00046027,120]
[394247796,1763407640658,-762.46,0.00046027,120]
[394247797,1763407640679,-516.25,0.00046027,120]
[394247798,1763407640701,-2383.28,0.00046027,3]
[394247799,1763407640722,-189.448428,0.000461,120]
[394247800,1763407640744,-488.55890055,0.000461,120]
[394247801,1763407640764,-692.61,0.000463,60]
[394247802,1763407640787,-2055.93,0.000463,120]
[394247803,1763407640810,-500.0,0.000463,120]
[394247804,1763407640832,-604.32,0.00046301,120]
[394247805,1763407640853,-762.46,0.00046301,120]
[394247806,1763407640876,-516.25,0.00046301,120]
[394247807,1763407640897,-2383.28,0.00046301,3]
[394247808,1763407640921,-52574.7257136,0.00046565,4]
[394247809,1763407640941,-1399.96989283,0.00046565,4]
[394247810,1763407640963,-692.61,0.00046574,60]
[394247811,1763407640985,-2055.93,0.00046574,120]
[394247812,1763407641008,-361.15,0.00046574,120]
[394247813,1763407641031,-604.32,0.00046575,120]
[394247814,1763407641050,-762.46,0.00046575,120]
[394247815,1763407641071,-516.25,0.00046575,120]
[394247816,1763407641092,-2383.28,0.00046575,3]
[394247817,1763407641112,-500.0,0.00046848,2]
[394247818,1763407641132,-692.61,0.00046848,60]
[394247819,1763407641152,-2055.93,0.00046848,120]
[394247820,1763407641173,-604.32,0.00046849,120]
[394247821,1763407641194,-199.0,0.00046849,30]
[394247822,1763407641216,-762.46,0.00046849,120]
[394247823,1763407641236,-516.25,0.00046849,120]
[394247824,1763407641255,-2383.28,0.00046849,3]
[394247825,1763407641276,-2348.19,0.000469,14]
[394247826,1763407641298,-692.61,0.00047122,60]
[394247827,1763407641318,-2055.93,0.00047122,120]
[394247828,1763407641337,-604.32,0.00047123,120]
[394247829,1763407641356,-762.46,0.00047123,120]
[394247830,1763407641376,-516.25,0.00047123,120]
[394247831,1763407641397,-2383.28,0.00047123,3]
[394247832,1763407641416,-692.61,0.00047396,60]
[394247833,1763407641437,-2055.93,0.00047396,120]
[394247834,1763407641457,-604.48191356,0.00047397,120]
[394247835,1763407641478,-762.5,0.00047397,120]
[394247836,1763407641499,-168.17973844,0.00047397,2]
[394247837,1763407641520,-302.72352919,0.00047397,2]
[394247838,1763407641541,-516.25,0.00047397,120]
[394247839,1763407641561,-538.17516301,0.00047397,2]
[394247840,1763407641582,-189.03837654,0.00047397,2]
[394247841,1763407641603,-2383.29179475,0.00047397,3]
[394247842,1763407641622,-850.0,0.00047474,120]
[394247843,1763407641641,-217.94198429,0.00047573,2]
[394247844,1763407641666,-692.74421972,0.0004767,60]
[394247845,1763407641688,-2056.01,0.0004767,120]
[394247846,1763407641708,-500.0,0.00047944,2]
[394247847,1763407641730,-556.74,0.00047995,2]
[394247848,1763407641751,-500.0,0.00047999,5]
[394247849,1763407641771,-500.0,0.00047999,5]
[394247850,1763407641794,-500.0,0.00047999,5]